Cogmind - Beta 11 X8 @@@ ROGUE MODE // 2021.12.14 @ 06:09:18 Player: leiavoia Result: Destroyed by Lightning with EMDS Performance ------------- Evolutions (6) 3000 Regions Visited (16) 3200 Robots Destroyed (148) 740 Value Destroyed (5728) 5728 Prototype IDs (29) 580 Alien Tech Used (2) 400 Bonus (3550) 3550 TOTAL SCORE: 17198 Bonus ------- High Alert Combat Kills 418 Follower Combat Kills 2263 Network Hubs Disabled 200 Met Zhirov 300 Built Enhanced Grunts 300 A7 Reached Mainframe 300 Met R17 at Cetus 500 Friendly Fire -731 Cogmind --------- Core Integrity 0/1150 Matter 57/300 Energy 240/350 System Corruption 47% Temperature Cool (17) Movement Hovering (66) Location -4/Hub_04(d) Parts ------- > --- POWER (1) -------- Quantum Reactor > --- PROPULSION (5) --- Combat Gravmag System Improved Antigrav System > --- UTILITY (9) ------ Hacking Suite > --- WEAPON (4) ------- KE Penetrator > --- INVENTORY (5) ---- Large Storage Unit Matter Compressor (250) Heavy Gauss Cannon Peak State ------------ > --- POWER ------------ Quantum Reactor > --- PROPULSION ------- Centrium Heavy Treads Centrium Heavy Treads Combat Gravmag System > --- UTILITY ---------- Advanced Heat Sink Advanced Heat Sink High-capacity Storage Unit Enhanced Optical Array Advanced Targeting Computer Centrium Medium Armor Plating Centrium Medium Armor Plating Centrium Medium Armor Plating Hacking Suite > --- WEAPON ----------- Advanced Variable Charge Gun KE Penetrator Railgun Railgun > --- INVENTORY -------- Quantum Reactor Light Quantum Reactor Combat Gravmag System Improved Antigrav System Large Storage Unit Matter Compressor Centrium Medium Armor Plating Advanced Variable Charge Gun Quantum Rifle KE Penetrator Improved KE Penetrator Heavy Gauss Cannon Great Axe [Rating: 136] Favorites ----------- Power Angular Momentum Engine Engine Angular Momentum Engine Power Core Micro Fission Core Reactor Quantum Reactor Propulsion Compact Wheel Treads Light Treads Leg Myomer Leg Wheel Compact Wheel Hover Unit Makeshift Hover Unit Utility Hacking Suite Device Advanced Heat Sink Storage Large Storage Unit Processor Advanced Targeting Computer Hackware Hacking Suite Protection Improved Medium Armor Plating Weapon Flak Gun Energy Gun Heavy Beamcaster Energy Cannon Plasma Cannon Ballistic Gun Flak Gun Ballistic Cannon Advanced Assault Cannon Launcher Heavy Missile Launcher Impact Weapon Mace Slashing Weapon Ripper Build | -11 -10 -9 -8 -8 -7 -6 -5 -5 -5 -5 -4 -4 -4 -4 -4 -4 ------- Run | Scr Mat Mat Mat Sto Fac Fac Fac Upp Upp Zhi Pro Fac Ext Cet Arc Hub Slots Evolved 12 | . . 2 2 . 2 2 2 . . . . 2 . . . . Power . | . . . . . . . . . . . . . . . . . Propulsion 3 | . . . . . 1 1 . . . . . 1 . . . . Utility 7 | . . 1 2 . 1 1 1 . . . . 1 . . . . Weapon 2 | . . 1 . . . . 1 . . . . . . . . . Parts Attached 224 | . 8 20 10 22 11 20 6 7 17 4 4 30 25 12 9 19 Power 15 | . 2 3 . . 1 1 1 . 1 . . 1 1 2 . 2 Engine 9 | . 2 3 . . 1 1 1 . . . . 1 . . . . Core 3 | . . . . . . . . . 1 . . . 1 1 . . Reactor 3 | . . . . . . . . . . . . . . 1 . 2 Propulsion 51 | . 1 4 1 7 3 3 2 2 4 . 1 10 3 4 2 4 Treads 18 | . . 3 1 4 2 1 . . . . . 2 . 3 2 . Leg 9 | . 1 . . . 1 . . . . . . 3 3 1 . . Wheel 11 | . . 1 . 3 . 2 2 1 . . . 2 . . . . Hover 13 | . . . . . . . . 1 4 . 1 3 . . . 4 Flight . | . . . . . . . . . . . . . . . . . Utility 74 | . 3 4 5 4 5 8 3 1 8 2 1 11 10 2 3 4 Device 21 | . . . 1 1 1 3 2 . 1 . 1 3 5 1 2 . Storage 7 | . 2 2 1 . . . . . . . . . . . . 2 Processor 10 | . 1 . 1 . . 3 1 . 3 . . 1 . . . . Hackware 5 | . . . . . 2 . . . 1 . . 2 . . . . Protection 31 | . . 2 2 3 2 2 . 1 3 2 . 5 5 1 1 2 Artifact . | . . . . . . . . . . . . . . . . . Weapon 84 | . 2 9 4 11 2 8 . 4 4 2 2 8 11 4 4 9 Energy Gun 19 | . . 2 . 2 . . . 1 . 1 . 1 5 2 2 3 Energy Cannon 8 | . . . . 1 1 1 . . . . . 3 1 . . 1 Ballistic Gun 31 | . 2 7 2 5 1 4 . . 2 . . . 3 1 2 2 Ballistic Cannon 7 | . . . . . . . . 2 . . 1 2 . 1 . 1 Launcher 6 | . . . 1 . . 1 . 1 2 . 1 . . . . . Special Weapon . | . . . . . . . . . . . . . . . . . Impact Weapon 6 | . . . 1 3 . 2 . . . . . . . . . . Slashing Weapon 7 | . . . . . . . . . . 1 . 2 2 . . 2 Piercing Weapon . | . . . . . . . . . . . . . . . . . Special Melee Weapon . | . . . . . . . . . . . . . . . . . Unidentified Prototypes 13 | . . 3 . 2 . . . . . 2 . 1 1 3 . 1 Parts Lost 70 | . 1 2 . 3 3 6 . 5 3 . 3 17 3 2 . 22 Power 5 | . . 1 . . 1 . . . . . . 1 . . . 2 Propulsion 20 | . . . . 2 1 4 . 1 . . 2 7 . . . 3 Utility 21 | . . 1 . . 1 2 . 2 1 . . 4 1 . . 9 Weapon 24 | . 1 . . 1 . . . 2 2 . 1 5 2 2 . 8 Highest Loss Streak 20 | . 1 1 . 1 3 4 . 5 2 . 3 7 3 2 . 20 Average Slot Usage (%) 94 | . 99 99 94 99 99 99 80 86 91 98 97 89 92 90 89 82 Engine 4 | . 14 10 9 9 7 6 5 5 2 . . . 1 . . . Core 1 | . . . . . . . . . 2 5 5 4 3 1 . . Treads 5 | . . 10 9 8 7 12 . . . . . 1 6 9 15 9 Leg 4 | . 28 1 . . . 1 . . . . . 3 12 6 . . Wheel 5 | . . 10 9 9 14 11 6 14 6 . . 2 . . . . Hover 3 | . . . . . . . 2 4 13 23 20 10 . . . 4 Device 7 | . . . 5 11 14 8 11 7 1 . 2 7 11 15 13 9 Storage 7 | . 17 11 9 9 7 6 5 5 5 5 5 5 5 5 5 4 Processor 10 | . 10 11 13 9 7 7 11 11 17 17 17 11 10 10 10 8 Hackware 7 | . . . . . 10 13 11 11 9 11 11 11 10 10 10 8 Protection 7 | . . 9 12 15 4 9 5 2 4 11 8 7 8 5 6 9 Energy Gun 3 | . 4 2 . 4 . . . . 5 5 5 3 9 8 5 . Energy Cannon 1 | . . . . . 6 2 5 2 . . . 7 1 . . 1 Ballistic Gun 13 | . 23 30 25 19 15 14 11 7 6 11 11 2 6 9 11 13 Ballistic Cannon 1 | . . . . . . . . 5 4 . 2 4 . 1 3 . Naked Turns . | . . . . . . . . . . . . . . . . . Heaviest Build 102 | 10 18 44 53 53 59 60 60 66 67 50 53 75 72 78 79 102 Greatest Support 188 | 20 20 20 16 40 32 32 42 54 54 48 48 159 159 183 188 188 Greatest Overweight (x) 24 | . . 2 3 3 4 5 5 1 5 1 1 7 . . . 24 Average Overweight (x) . | . . 1 2 2 1 1 4 . . . . 1 . . . . Largest Inventory Capacity 20 | 8 10 15 15 15 15 15 15 15 15 15 15 15 15 15 15 20 Average Capacity 14 | 8 9 12 15 15 15 15 15 15 15 15 15 15 15 15 15 15 Most Carried 15 | 6 10 15 15 15 15 15 15 15 15 15 15 15 15 15 15 15 Average Carried 13 | 6 8 12 15 14 14 14 13 13 14 14 14 14 14 14 14 13 Final Capacity 15 | 8 10 15 15 15 15 15 15 15 15 15 15 15 15 15 15 5 Final Carried 15 | 6 10 15 15 15 13 15 15 13 15 15 14 14 15 15 15 3 Class Distribution -------------------- 21% | Scavenger-Tank 13% | Mutant 11% | Derelict-Gunner 8% | Gunner 7% | Tank 6% | Hacker-Gunner 4% | Hacker-Tank 4% | Scavenger-Gunner 4% | Hacker-Skirmisher 3% | Scavenger-Skirmisher 3% | Hacker-Mutant 3% | Scavenger-Mutant Dominant Class ---------------- Mutant | -10/Materials Gunner | -9/Materials Scavenger-Gunner | -8/Materials Tank | -8/Storage Hacker-Gunner | -7/Factory Scavenger-Tank | -6/Factory Hacker-Skirmisher | -5/Factory Scavenger-Skirmisher | -5/Upper Caves Derelict-Gunner | -5/Upper Caves Derelict-Gunner | -5/Zhirov Derelict-Gunner | -4/Proximity Caves Hacker-Tank | -4/Factory Scavenger-Tank | -4/Extension Scavenger-Tank | -4/Cetus Scavenger-Tank | -4/Archives Scavenger-Tank | -4/Hub_04(d) Resources | -11 -10 -9 -8 -8 -7 -6 -5 -5 -5 -5 -4 -4 -4 -4 -4 -4 ----------- Run | Scr Mat Mat Mat Sto Fac Fac Fac Upp Upp Zhi Pro Fac Ext Cet Arc Hub Matter Collected 5458 | 230 170 495 291 704 236 531 190 201 361 109 361 308 575 315 146 235 Remotely 239 | . . . . . . 239 . . . . . . . . . . Salvage Created 7149 | 154 247 557 291 1467 311 660 198 172 357 316 189 453 1192 272 . 313 Parts 317 | 13 11 50 15 81 11 23 8 1 9 3 4 14 38 10 . 26 Haulers Intercepted 8 | . . 3 1 3 . 1 . . . . . . . . . . Recyclers Shooed 2 | . 1 . . . . . . . . . . 1 . . . . Parts Field Recycled . | . . . . . . . . . . . . . . . . . Retrieved Matter . | . . . . . . . . . . . . . . . . . Parts Self-Destructed 22 | . . . . . . . . 3 14 2 3 . . . . . Prevented . | . . . . . . . . . . . . . . . . . Kills | -11 -10 -9 -8 -8 -7 -6 -5 -5 -5 -5 -4 -4 -4 -4 -4 -4 ------- Run | Scr Mat Mat Mat Sto Fac Fac Fac Upp Upp Zhi Pro Fac Ext Cet Arc Hub Combat Hostiles Destroyed 111 | . 5 13 4 21 8 13 . 3 11 . 3 5 14 3 . 8 Guns 84 | . 5 13 2 20 6 8 . . 5 . 2 3 9 3 . 8 Cannons 16 | . . . . . 2 2 . 1 4 . 1 2 4 . . . AOE 10 | . . . 2 1 . 3 . 2 2 . . . . . . . Classes Destroyed 17 | 2 2 4 1 4 1 . 1 . . . . . . . . 2 Worker 3 | . . 1 . . . . 1 . . . . . . . . 1 Builder 3 | . . . . 1 . . . . . . . 1 1 . . . Tunneler 7 | 5 . . . . . 1 1 . . . . . . . . . Hauler 8 | . . 3 1 3 . 1 . . . . . . . . . . Recycler 6 | 1 . . 1 2 . . 1 . . . . 1 . . . . Mechanic 1 | . . . . . . . 1 . . . . . . . . . Operator 2 | . . . . 2 . . . . . . . . . . . . Watcher 5 | . 1 2 1 . 1 . . . . . . . . . . . Swarmer 27 | . . 9 . . 3 3 . 1 6 . . . . . . 5 Grunt 47 | . 5 1 2 13 3 8 . . 3 . 3 3 6 . . . Brawler 2 | . . . . 1 . . . . 1 . . . . . . . Duelist 4 | . . . . 2 . . . 2 . . . . . . . . Sentry 20 | . . 3 1 3 1 1 . . 1 . . 2 8 . . . Specialist 1 | . . . . . . . . . . . . . . . . 1 Hunter 3 | . . . 1 2 . . . . . . . . . . . . Programmer 3 | . . . . . 1 1 . . . . . . . . . 1 Heavy 1 | . . . . . . . . . . . . . . . . 1 Cetus Guard 3 | . . . . . . . . . . . . . . 3 . . Packrat 2 | . . . . . . . . 2 . . . . . . . . Savage 2 | . . . . . . . . . . . . . 1 1 . . Best Kill Streak 8 | 2 3 8 4 8 4 6 3 3 6 . 3 6 6 3 . 6 Combat Bots Only 7 | . 2 7 3 4 3 5 . 3 6 . 3 4 6 3 . 5 Max Kills in Single Turn 4 | 1 1 2 3 2 1 2 1 2 2 . 1 2 1 1 . 4 Gunslinging 1 | . . . . . . . . . . . . . . . . 1 Exploded 2 | . . . 2 1 . 2 . 2 1 . . . . . . . Melee . | . . . . . . . . . . . . . . . . . Uniques/NPCs Destroyed . | . . . . . . . . . . . . . . . . . Combat | -11 -10 -9 -8 -8 -7 -6 -5 -5 -5 -5 -4 -4 -4 -4 -4 -4 -------- Run | Scr Mat Mat Mat Sto Fac Fac Fac Upp Upp Zhi Pro Fac Ext Cet Arc Hub Damage Taken 15662 | . 396 421 192 1246 502 1002 . 512 425 . 524 2549 1407 311 202 5973 Core 1609 | . 45 23 26 93 48 146 . . 40 . 66 332 42 21 . 727 Absorbed by Shields 138 | . . . . . . . . . . . . . 113 25 . . Reduced by Siege Mode 187 | . . . . . . . . . . . . . 42 . . 145 Core Remaining (%) 88 | 100 82 94 . 78 93 82 . . . . 89 . . . . . Volleys Fired 400 | 30 40 31 10 74 26 30 4 14 18 . 5 23 49 14 6 26 Largest 4 | 2 2 3 3 3 3 3 3 4 4 . 3 4 4 4 4 4 Hottest 550 | 60 60 111 76 111 133 146 146 185 210 . 108 331 289 230 208 550 Shots Fired 1133 | 60 78 91 29 218 72 85 12 41 43 . 15 59 169 53 18 90 Gun 970 | 60 78 91 26 218 46 68 8 20 18 . 10 28 148 48 15 88 Cannon 147 | . . . . . 26 15 4 18 19 . 3 31 21 5 3 2 Launcher 16 | . . . 3 . . 2 . 3 6 . 2 . . . . . Special . | . . . . . . . . . . . . . . . . . Kinetic 817 | 30 77 87 26 180 46 68 8 30 27 . 13 32 63 33 15 82 Thermal 261 | 30 1 4 . 11 26 15 4 8 10 . . 27 96 20 3 6 Explosive 16 | . . . 3 . . 2 . 3 6 . 2 . . . . . Electromagnetic 39 | . . . . 27 . . . . . . . . 10 . . 2 Robot Hit Streak 23 | 12 9 10 8 20 8 13 6 7 4 . 6 14 23 18 8 9 Robot Miss Streak 6 | 3 4 2 1 4 6 4 4 6 6 . 2 1 3 2 3 5 Penetration Max 2 | . . . . 1 . 2 . . . . . . 1 1 . 2 Secondary Targets 8 | . 1 1 . 2 . 2 . . . . . . . . . 2 Max Gunslinging Chain 1 | . 1 1 . 1 . 1 . . . . . . . . . 1 Shots Hit Robots 776 | 40 47 62 18 161 49 63 7 30 19 6 9 38 116 40 11 60 Core Hits 423 | 11 20 23 17 62 32 65 11 36 26 2 8 17 51 16 2 24 Critical Kills 3 | . . . . 2 . . . . . . . . . 1 . . Critical Parts Destroyed 9 | . . . . 1 . 2 . . . . . 1 3 . . 2 Critical Strikes 18 | . . . 1 3 . 2 . . 1 . . 2 4 3 . 2 Burn 3 | . . . . . . . . . . . . . 1 2 . . Destroy 13 | . . . 1 3 . 2 . . . . . 1 3 1 . 2 Blast 2 | . . . . . . . . . 1 . . 1 . . . . Melee Attacks 45 | . . . . 15 . 8 . . . 6 . 8 7 . . 1 Impact 23 | . . . . 15 . 8 . . . . . . . . . . Slashing 22 | . . . . . . . . . . 6 . 8 7 . . 1 Piercing . | . . . . . . . . . . . . . . . . . Sneak Attacks 1 | . . . . 1 . . . . . . . . . . . . Combat Hostiles . | . . . . . . . . . . . . . . . . . Follow-up Attacks . | . . . . . . . . . . . . . . . . . Damage Inflicted 18588 | 356 401 999 535 2952 988 1756 219 1017 1024 624 318 1055 2998 1135 227 1984 Guns 13561 | 356 401 999 241 2681 642 1280 86 393 266 . 116 536 2407 1032 192 1933 Cannons 2623 | . . . . . 346 276 133 299 288 . 31 519 545 103 35 48 Explosions 1674 | . . . 294 214 . 200 . 325 470 . 171 . . . . . Melee 727 | . . . . 57 . . . . . 624 . . 46 . . . Ramming 3 | . . . . . . . . . . . . . . . . 3 Kinetic 11377 | 156 401 946 241 2164 642 1280 86 554 407 . 147 613 1124 759 190 1667 Thermal 4306 | 200 . 53 . 343 346 276 133 138 147 . . 442 1549 376 37 266 Explosive 1460 | . . . 294 . . 200 . 325 470 . 171 . . . . . Electromagnetic 715 | . . . . 388 . . . . . . . . 279 . . 48 Impact 57 | . . . . 57 . . . . . . . . . . . . Slashing 670 | . . . . . . . . . . 624 . . 46 . . . Piercing . | . . . . . . . . . . . . . . . . . Highest Corruption 46 | . . . . 2 1 . . 1 1 1 1 . . . . 46 Average Corruption 2 | . . . . 2 1 . . 1 1 1 1 . . . . 24 Corruption Purged . | . . . . . . . . . . . . . . . . . Effects 9 | . . . . . . . . 2 3 . . . . . . 4 Message Errors 3 | . . . . . . . . 1 1 . . . . . . 1 Matter Fused 1 | . . . . . . . . . . . . . . . . 1 Energy Discharges 2 | . . . . . . . . 1 1 . . . . . . . Data Loss (minor) 1 | . . . . . . . . . 1 . . . . . . . Alerts 1 | . . . . . . . . . . . . . . . . 1 Weapon Failures 1 | . . . . . . . . . . . . . . . . 1 Overload Shots 6 | . . . . . . . . . . . . . . . . 6 Overflow Damage 352 | . . . 1 . 7 . . 27 3 314 . . . . . . Projectiles 22 | . . . . . 7 . . 12 3 . . . . . . . Explosions 16 | . . . 1 . . . . 15 . . . . . . . . Melee 314 | . . . . . . . . . . 314 . . . . . . Knockbacks 4 | . . . . . . . . . 1 . . 3 . . . . Impact . | . . . . . . . . . . . . . . . . . Kinetic 4 | . . . . . . . . . 1 . . 3 . . . . Secondary . | . . . . . . . . . . . . . . . . . Self-Inflicted Damage 225 | . . . 23 79 . . . . 54 . 69 . . . . . Shots 8 | . . . 2 2 . . . . 2 . 2 . . . . . Rammed 1 | . . . . . . . . . . . . . . . . 1 Targets Rammed 1 | . . . . . . . . . . . . . . . . 1 Kicked . | . . . . . . . . . . . . . . . . . Crushed . | . . . . . . . . . . . . . . . . . Highest Temperature 681 | 82 24 133 27 295 41 65 162 272 362 . 167 519 501 30 18 681 Average Temperature 74 | 36 10 28 15 44 17 25 76 108 147 . 68 130 98 14 18 193 Received Heat Transfer 3334 | . 225 108 54 477 159 297 . 90 27 . 114 496 357 18 36 876 Effects 10 | . . . . . . . . . . . . 3 3 . . 4 Shutdowns 3 | . . . . . . . . . . . . 1 1 . . 1 Energy Bleed 1 | . . . . . . . . . . . . . 1 . . . Interference 1 | . . . . . . . . . . . . 1 . . . . Matter Decay 1 | . . . . . . . . . . . . 1 . . . . Damage (minor) 3 | . . . . . . . . . . . . . 1 . . 2 Damage (major) 1 | . . . . . . . . . . . . . . . . 1 Siege Activations 2 | . . . . . . . . . . . . . 1 . . 1 Total Turns 33 | . . . . . . . . . . . . . 18 . . 15 Longest Duration 18 | . . . . . . . . . . . . . 18 . . 15 Robots Corrupted 1 | . . . . . . . . . . . . . 1 . . . Combat Hostiles 1 | . . . . . . . . . . . . . 1 . . . Parts Fried 3 | . . . . . . . . . . . . . 3 . . . Impact Corruptions . | . . . . . . . . . . . . . . . . . Robots Melted . | . . . . . . . . . . . . . . . . . Combat Hostiles . | . . . . . . . . . . . . . . . . . Parts Melted 6 | . . . . . . . . . 1 . . . 5 . . . Heat Transferred 6916 | 450 . 111 . 559 650 500 200 200 259 . . 558 2490 740 74 125 Parts Sabotaged . | . . . . . . . . . . . . . . . . . Parts Stolen . | . . . . . . . . . . . . . . . . . Parts Stripped . | . . . . . . . . . . . . . . . . . Power Chain Reactions 2 | . . . . 2 . . . . . . . . . . . . Missiles Intercepted . | . . . . . . . . . . . . . . . . . Alert | -11 -10 -9 -8 -8 -7 -6 -5 -5 -5 -5 -4 -4 -4 -4 -4 -4 ------- Run | Scr Mat Mat Mat Sto Fac Fac Fac Upp Upp Zhi Pro Fac Ext Cet Arc Hub Peak Influence 939 | 30 225 321 249 610 342 354 143 . . . . 151 870 939 603 572 Initial 473 | . 19 10 33 104 253 137 123 . . . . . . 473 375 210 Average 280 | 13 83 89 162 407 257 209 132 . . . . 62 436 775 533 241 Maximum Alert Level 3 | . 1 1 1 2 1 1 . . . . . . 3 3 2 2 Low Security (%) 47 | 100 98 95 54 16 18 43 100 . . . . 100 31 . . 24 Level 1 26 | . 1 4 45 20 81 56 . . . . . . 11 . 10 72 Level 2 18 | . . . . 62 . . . . . . . . 32 42 89 2 Level 3 7 | . . . . . . . . . . . . . 24 57 . . Level 4 . | . . . . . . . . . . . . . . . . . Level 5 . | . . . . . . . . . . . . . . . . . High Security . | . . . . . . . . . . . . . . . . . Max Security . | . . . . . . . . . . . . . . . . . Squads Dispatched 36 | . 1 1 2 9 2 7 1 . 1 . . 4 4 . . 4 Investigation 10 | . . 1 1 2 . 1 1 . . . . 1 2 . . 1 Extermination 3 | . . . . . 1 1 . . . . . 1 . . . . Reinforcement 18 | . 1 . 1 6 1 2 . . . . . 2 2 . . 3 Assault 2 | . . . . 1 . . . . 1 . . . . . . . Garrison 3 | . . . . . . 3 . . . . . . . . . . Intercept . | . . . . . . . . . . . . . . . . . Construction Impeded 2 | . . . . . . 1 . . . . . . 1 . . . Haulers Reinforced . | . . . . . . . . . . . . . . . . . Active Scanning Responses . | . . . . . . . . . . . . . . . . . Cargo Convoy Interrupts . | . . . . . . . . . . . . . . . . . Stealth | -11 -10 -9 -8 -8 -7 -6 -5 -5 -5 -5 -4 -4 -4 -4 -4 -4 --------- Run | Scr Mat Mat Mat Sto Fac Fac Fac Upp Upp Zhi Pro Fac Ext Cet Arc Hub Distress Signals 12 | . . 2 1 3 . 2 . . . . . . 2 2 . . Communications Jammed . | . . . . . . . . . . . . . . . . . Distress Signals . | . . . . . . . . . . . . . . . . . Times Spotted 250 | . 11 20 6 49 14 18 1 6 15 . 3 17 33 19 3 35 Peak Tracking Total 15 | . 4 9 4 15 5 5 . 5 8 . 3 7 6 8 2 15 Tactical Retreats 16 | . . 1 1 8 . . . . . . . . 2 . . 4 Traps | -11 -10 -9 -8 -8 -7 -6 -5 -5 -5 -5 -4 -4 -4 -4 -4 -4 ------- Run | Scr Mat Mat Mat Sto Fac Fac Fac Upp Upp Zhi Pro Fac Ext Cet Arc Hub Traps Triggered 6 | . . . . 5 . . . . . . . 1 . . . . Indirectly . | . . . . . . . . . . . . . . . . . Trap Hack Attempts . | . . . . . . . . . . . . . . . . . Triggered . | . . . . . . . . . . . . . . . . . Disarmed . | . . . . . . . . . . . . . . . . . Reprogrammed . | . . . . . . . . . . . . . . . . . Reused . | . . . . . . . . . . . . . . . . . Traps Extracted . | . . . . . . . . . . . . . . . . . Installed . | . . . . . . . . . . . . . . . . . Triggered . | . . . . . . . . . . . . . . . . . Machines | -11 -10 -9 -8 -8 -7 -6 -5 -5 -5 -5 -4 -4 -4 -4 -4 -4 ---------- Run | Scr Mat Mat Mat Sto Fac Fac Fac Upp Upp Zhi Pro Fac Ext Cet Arc Hub Machines Disabled 12 | . . . 1 2 . . . . . . . . 3 . 3 3 Max in Single Turn 1 | . . . 1 1 . . . . . . . . 1 . 1 1 Network Hub 1 | . . . . . . . . . . . . . . . . 1 Machines Sabotaged . | . . . . . . . . . . . . . . . . . Garrisons Compromised . | . . . . . . . . . . . . . . . . . Overloaded Fab Kills . | . . . . . . . . . . . . . . . . . Hacking | -11 -10 -9 -8 -8 -7 -6 -5 -5 -5 -5 -4 -4 -4 -4 -4 -4 --------- Run | Scr Mat Mat Mat Sto Fac Fac Fac Upp Upp Zhi Pro Fac Ext Cet Arc Hub Machines Accessed 42 | . 6 3 1 4 2 1 1 . 1 5 . 2 13 1 . 2 Terminals 30 | . 5 3 1 3 1 1 . . . . . 1 12 1 . 2 Fabricators . | . . . . . . . . . . . . . . . . . Repair Stations 3 | . . . . . 1 . 1 . . . . 1 . . . . Recycling Units 3 | . 1 . . 1 . . . . . . . . 1 . . . Scanalyzers . | . . . . . . . . . . . . . . . . . Garrison Access . | . . . . . . . . . . . . . . . . . Total Hacks 114 | . 16 17 7 8 3 3 3 . 1 18 . 5 26 1 . 6 Successful 69 | . 10 7 5 4 2 1 2 . 1 18 . 1 14 1 . 3 Failed 45 | . 6 10 2 4 1 2 1 . . . . 4 12 . . 3 Catastrophic 5 | . . . . 2 . 1 . . . . . . 1 . . 1 Database Lockouts . | . . . . . . . . . . . . . . . . . Manual 12 | . . 2 4 1 . . . . . . . . 2 1 2 . Terminals 84 | . 14 17 7 6 2 3 . . . . . 3 25 1 . 6 Fabricators . | . . . . . . . . . . . . . . . . . Repair Stations 6 | . . . . . 1 . 3 . . . . 2 . . . . Recycling Units 5 | . 2 . . 2 . . . . . . . . 1 . . . Scanalyzers . | . . . . . . . . . . . . . . . . . Garrison Access . | . . . . . . . . . . . . . . . . . Terminal Hacks 59 | . 9 6 2 3 1 1 . . 1 18 . 1 13 1 . 3 Record 6 | . . . . . . . . . . 6 . . . . . . Part Schematic 5 | . . . . . . . . . . 4 . . 1 . . . Robot Analysis 7 | . . 1 . 1 . . . . . 4 . . 1 . . . Prototype ID Bank 9 | . . 1 1 1 . . . . . 4 . . 2 . . . Open Door 11 | . . . . 1 . . . . 1 . . . 8 1 . . Level Access Points 3 | . 1 1 . . 1 . . . . . . . . . . . Emergency Access Points 2 | . 1 1 . . . . . . . . . . . . . . Alert Level 1 | . 1 . . . . . . . . . . . . . . . Unreport Threat 4 | . . 1 . . . . . . . . . . . . . 3 Locate Traps 5 | . 3 . 1 . . . . . . . . . 1 . . . Transport Status 1 | . . 1 . . . . . . . . . . . . . . Hauler Manifests 1 | . 1 . . . . . . . . . . . . . . . Zone Layout 4 | . 2 . . . . 1 . . . . . 1 . . . . Fabricator Hacks . | . . . . . . . . . . . . . . . . . Repair Station Hacks 3 | . . . . . 1 . 2 . . . . . . . . . Scan Component 2 | . . . . . 1 . 1 . . . . . . . . . Refit 1 | . . . . . . . 1 . . . . . . . . . Recycling Unit Hacks 3 | . 1 . . 1 . . . . . . . . 1 . . . Retrieve Components 3 | . 1 . . 1 . . . . . . . . 1 . . . Scanalyzer . | . . . . . . . . . . . . . . . . . Garrison Access Hacks . | . . . . . . . . . . . . . . . . . Unauthorized Hacks 4 | . . 1 3 . . . . . . . . . . . . . Terminals 4 | . . 1 3 . . . . . . . . . . . . . Assimilate 1 | . . . 1 . . . . . . . . . . . . . Botnet 1 | . . . 1 . . . . . . . . . . . . . Operators 2 | . . 1 1 . . . . . . . . . . . . . Fabricators . | . . . . . . . . . . . . . . . . . Repair Stations . | . . . . . . . . . . . . . . . . . Recycling Units . | . . . . . . . . . . . . . . . . . Scanalyzers . | . . . . . . . . . . . . . . . . . Garrison Access . | . . . . . . . . . . . . . . . . . Data Cores Recovered . | . . . . . . . . . . . . . . . . . Used . | . . . . . . . . . . . . . . . . . Hacking Detections 26 | . 5 3 1 2 1 1 1 . . . . 2 8 . . 2 Full Trace Events 8 | . . 2 1 . . 1 1 . . . . . 2 . . 1 Feedback Events . | . . . . . . . . . . . . . . . . . Feedback Blocked . | . . . . . . . . . . . . . . . . . Robot Schematics Acquired . | . . . . . . . . . . . . . . . . . Robots Built . | . . . . . . . . . . . . . . . . . Authchips . | . . . . . . . . . . . . . . . . . Time . | . . . . . . . . . . . . . . . . . Total Robot Build Rating . | . . . . . . . . . . . . . . . . . Part Schematics Acquired 5 | . . . . . . . . . . 4 . . 1 . . . Parts Built . | . . . . . . . . . . . . . . . . . Authchips . | . . . . . . . . . . . . . . . . . Time . | . . . . . . . . . . . . . . . . . Total Part Build Rating . | . . . . . . . . . . . . . . . . . Parts Repaired . | . . . . . . . . . . . . . . . . . Time . | . . . . . . . . . . . . . . . . . Parts Recycled . | . . . . . . . . . . . . . . . . . Recycled Matter . | . . . . . . . . . . . . . . . . . Retrieved Matter . | . . . . . . . . . . . . . . . . . Retrieved Components 18 | . 1 . . 10 . . . . . . . . 7 . . . Parts Scanalyzed . | . . . . . . . . . . . . . . . . . Part Schematics Acquired . | . . . . . . . . . . . . . . . . . Parts Damaged . | . . . . . . . . . . . . . . . . . Bothacking | -11 -10 -9 -8 -8 -7 -6 -5 -5 -5 -5 -4 -4 -4 -4 -4 -4 ------------ Run | Scr Mat Mat Mat Sto Fac Fac Fac Upp Upp Zhi Pro Fac Ext Cet Arc Hub Used RIF Installer . | . . . . . . . . . . . . . . . . . Robots Hacked . | . . . . . . . . . . . . . . . . . Non-combat . | . . . . . . . . . . . . . . . . . Combat . | . . . . . . . . . . . . . . . . . Robot Hacks Applied . | . . . . . . . . . . . . . . . . . Relay Couplers Released . | . . . . . . . . . . . . . . . . . Fabnet Peak Effective % . | . . . . . . . . . . . . . . . . . Robots Rewired 16 | . . . . . . . 1 . . . . . 15 . . . Allies Hacked . | . . . . . . . . . . . . . . . . . Hacks Repelled . | . . . . . . . . . . . . . . . . . Allies | -11 -10 -9 -8 -8 -7 -6 -5 -5 -5 -5 -4 -4 -4 -4 -4 -4 -------- Run | Scr Mat Mat Mat Sto Fac Fac Fac Upp Upp Zhi Pro Fac Ext Cet Arc Hub Total Allies 36 | . . . . . . . 1 . . . . . 30 5 . . Largest Group 13 | . . . . . . . 1 1 1 . . . 13 12 6 5 Highest-Rated Group 637 | . . . . . . . 49 49 49 . . . 637 574 504 475 Highest-Rated Ally 159 | . . . . . . . 49 49 49 . . . 159 159 95 95 Total Orders 2 | . . . . 1 1 . . . . . . . . . . . EXPLORE 2 | . . . . 1 1 . . . . . . . . . . . Ally Attacks 283 | . . . . . . . . 8 9 . . . 109 67 38 52 Total Damage 9676 | . . . . . . . . 262 257 . . . 4077 1942 1623 1515 Kills 54 | . . . . . . . . 3 3 . . . 24 14 5 5 Allies Corrupted . | . . . . . . . . . . . . . . . . . Allies Melted . | . . . . . . . . . . . . . . . . . Intel | -11 -10 -9 -8 -8 -7 -6 -5 -5 -5 -5 -4 -4 -4 -4 -4 -4 ------- Run | Scr Mat Mat Mat Sto Fac Fac Fac Upp Upp Zhi Pro Fac Ext Cet Arc Hub Robot Analysis Total 7 | . . 1 . 1 . . . . . 4 . . 1 . . . Derelict Logs Recovered 6 | . . . . . . . . 3 1 . 2 . . . . . Drone Launches 18 | . . . . 16 2 . . . . . . . . . . . Drone Recoveries 4 | . . . . 2 2 . . . . . . . . . . . Exploration | -11 -10 -9 -8 -8 -7 -6 -5 -5 -5 -5 -4 -4 -4 -4 -4 -4 ------------- Run | Scr Mat Mat Mat Sto Fac Fac Fac Upp Upp Zhi Pro Fac Ext Cet Arc Hub Turns Passed 7573 | 116 437 650 200 680 610 644 89 524 464 146 410 547 1132 338 177 409 Spaces Moved 4658 | 27 255 312 111 262 281 397 46 440 522 180 492 320 592 166 80 175 Core 1 | . . . . . . . . . . . . . . . . 1 Treads 722 | . . 57 . 8 125 . . . . . . 74 103 118 80 157 Legs 851 | 27 255 19 . . 9 . . . . . . 4 489 48 . . Wheels 1872 | . . 236 111 254 147 397 46 440 121 . . 120 . . . . Hover 1212 | . . . . . . . . . 401 180 492 122 . . . 17 Flight . | . . . . . . . . . . . . . . . . . Fastest Speed 55 | 120 120 115 130 115 115 105 108 93 58 58 58 55 120 120 160 66 Average Speed 118 | 120 120 152 136 141 179 118 143 106 71 64 78 125 126 148 160 158 Slowest Speed 1250 | 120 120 240 145 240 400 155 155 108 430 128 132 270 160 160 160 1250 Overloaded Moves . | . . . . . . . . . . . . . . . . . Propulsion Burnouts . | . . . . . . . . . . . . . . . . . Robots Hopped . | . . . . . . . . . . . . . . . . . Cave-ins Triggered 1 | . . . . . . . . . . . . . . . . 1 Teleports 1 | . . . . . . . . . . . . 1 . . . . Exploration Rate (%) 45 | 4 54 31 15 79 8 12 1 87 75 61 70 13 62 83 85 26 Regions Visited 16 Branch Regions 9 Pre-discovered Areas 5 | . . . . . . . . 1 1 3 . . . . . . Known Exits Taken 4 | . 1 1 . . 1 . . . . . . 1 . . . . Unknown Exits Taken 12 | 1 . . 1 1 . 1 1 1 1 1 1 . 1 1 1 . Scrap Searched 12 | . . . . . . . . 4 4 . 4 . . . . . Spaces Dug 38 | . . . . 8 . 6 . 2 . . . 15 6 . . 1 Terrain Destroyed 263 | . . . 14 18 . 13 . 38 64 . 35 21 35 2 3 20 Melee 26 | . . . . 8 . 6 . . . . . 8 3 . . 1 Projectile 89 | . . . 1 2 . . . 7 5 . 5 13 32 2 3 19 AOE 148 | . . . 13 8 . 7 . 31 59 . 30 . . . . . Terrain Rammed . | . . . . . . . . . . . . . . . . . Walls Destroyed . | . . . . . . . . . . . . . . . . . Machines Disabled . | . . . . . . . . . . . . . . . . . Actions | -11 -10 -9 -8 -8 -7 -6 -5 -5 -5 -5 -4 -4 -4 -4 -4 -4 --------- Run | Scr Mat Mat Mat Sto Fac Fac Fac Upp Upp Zhi Pro Fac Ext Cet Arc Hub Total 5878 | 56 324 424 144 428 345 500 58 465 578 201 503 402 857 229 119 245 Wait 235 | . 10 24 1 30 20 21 . 2 1 . . 9 88 12 15 2 Move 4642 | 26 254 311 110 261 280 396 45 439 521 179 491 319 591 165 79 175 Hop . | . . . . . . . . . . . . . . . . . Pick Up 103 | . 6 16 3 7 3 10 2 . 7 5 2 7 12 8 2 13 Fast Attach 72 | . 2 4 4 6 2 7 2 2 11 3 . 13 6 7 . 3 Attach 55 | . 1 5 . 4 4 3 2 2 2 1 2 6 8 2 1 12 Detach 13 | . 1 1 1 1 . 2 . . 3 . . 1 1 1 . 1 Swap 100 | . 5 12 6 12 5 10 2 3 4 1 2 12 11 3 8 4 Drop 134 | . 5 20 9 11 5 13 . 3 11 6 1 4 14 17 8 7 Fire 400 | 30 40 31 10 74 26 30 4 14 18 . 5 23 49 14 6 26 Melee 45 | . . . . 15 . 8 . . . 6 . 8 7 . . 1 Ram . | . . . . . . . . . . . . . . . . . Kick . | . . . . . . . . . . . . . . . . . Crush 1 | . . . . . . . . . . . . . . . . 1 Escape Stasis . | . . . . . . . . . . . . . . . . . Rewire 71 | . . . . . . . 1 . . . . . 70 . . . Trap . | . . . . . . . . . . . . . . . . . Miscellaneous 7 | . . . . 7 . . . . . . . . . . . . Route ------- -11/Scrapyard -10/Materials (discovered 4 exits: *Mat x3 / [Min]) -9/Materials (discovered 3 exits: *Mat x3) -8/Materials -8/Storage -7/Factory (discovered 4 exits: *Fac x4) -6/Factory -5/Factory -5/Upper Caves -5/Upper Caves (discovered 2 exits: *Fac / *Zhi) -5/Zhirov -4/Proximity Caves -4/Factory (discovered 4 exits: Res x2 / *Ext x2) -4/Extension (discovered 2 exits: *Res / *Cet) -4/Cetus (discovered 2 exits: *Res / *Arc) -4/Archives (discovered 3 exits: *Res / *Hub x2) -4/Hub_04(d) (discovered 1 exit: *Res) History --------- Turn | Location | Event 16 | -11/Scrapyard | Discovered new exit (range 2) 117 | -11/Scrapyard | Entered Materials 201 | -10/Materials | Identified exit to Materials 279 | -10/Materials | Discovered new exit (range 11) 307 | -10/Materials | Build established: Mutant 554 | -10/Materials | Entered another Materials area 554 | -9/Materials | Evolved 2 slots: Utility x1, Weapon x1 865 | -9/Materials | Build established: Gunner 894 | -9/Materials | Identified exit to Materials 961 | -9/Materials | Destroyed 7 combat bots 1204 | -9/Materials | Entered another Materials area 1204 | -8/Materials | Evolved 2 slots: Utility x2 1305 | -8/Materials | Discovered new exit (range 16) 1404 | -8/Materials | Entered Storage 1784 | -8/Storage | Build established: Tank 1804 | -8/Storage | First assault squad dispatched 2062 | -8/Storage | Discovered new exit (range 16) 2084 | -8/Storage | Entered Factory 2084 | -7/Factory | Evolved 2 slots: Propulsion x1, Utility x1 2262 | -7/Factory | Identified exit to Factory 2568 | -7/Factory | Build established: Hacker-Gunner 2675 | -7/Factory | Lost 3 parts (1p1n1u) 2694 | -7/Factory | Entered another Factory area 2694 | -6/Factory | Evolved 2 slots: Propulsion x1, Utility x1 3089 | -6/Factory | Garrison activated, responded to threat 3287 | -6/Factory | Discovered new exit (range 7) 3338 | -6/Factory | Entered another Factory area 3338 | -5/Factory | Evolved 2 slots: Utility x1, Weapon x1 3364 | -5/Factory | Lost 4 parts (3n1u) 3410 | -5/Factory | Discovered new exit (range 8) 3427 | -5/Factory | Entered Upper Caves 3427 | -5/Upper Caves | Accompanied by 1 ally 3489 | -5/Upper Caves | Learned location of 1 exit from Factory 3545 | -5/Upper Caves | Learned location of Armory (-3) 3657 | -5/Upper Caves | Learned 4 Factory zone layouts 3681 | -5/Upper Caves | Attracted the attention of an 0b10 checkpoint 3732 | -5/Upper Caves | Lost 5 parts (1n2u2w) 3860 | -5/Upper Caves | Spotted B-75 Beast 3907 | -5/Upper Caves | Discovered new exit (range 21) 3951 | -5/Upper Caves | Entered another Upper Caves area 3951 | -5/Upper Caves | Accompanied by 1 ally 3977 | -5/Upper Caves | Discovered new exit (range 7) 4052 | -5/Upper Caves | Attracted the attention of an 0b10 checkpoint 4350 | -5/Upper Caves | Attracted the attention of an 0b10 outpost 4405 | -5/Upper Caves | Discovered new exit (range 8) 4415 | -5/Upper Caves | Entered Zhirov 4415 | -5/Zhirov | Discovered new exit (range 3) 4426 | -5/Zhirov | Met Zhirov 4439 | -5/Zhirov | Learned location of Quarantine (-3) 4439 | -5/Zhirov | Learned location of Testing (-2) 4439 | -5/Zhirov | Learned location of Command (-1) 4442 | -5/Zhirov | Zhirov requested help retrieving the SGEMP Prototype 4451 | -5/Zhirov | Found Alien Artifact 4451 | -5/Zhirov | Identified Integrated Reactor 4451 | -5/Zhirov | Installed Integrated Reactor, increased core energy generation (+10) 4463 | -5/Zhirov | Found Alien Artifact 4561 | -5/Zhirov | Entered Proximity Caves 4562 | -4/Proximity Caves | Learned Research garrison access intel 4660 | -4/Proximity Caves | Build established: Derelict-Gunner 4743 | -4/Proximity Caves | Learned location of 1 exit from Research 4804 | -4/Proximity Caves | Lost 3 parts (2n1w) 4903 | -4/Proximity Caves | Discovered new exit (range 7) 4971 | -4/Proximity Caves | Entered Factory 4971 | -4/Factory | Evolved 2 slots: Propulsion x1, Utility x1 4972 | -4/Factory | Identified exit to Research 4973 | -4/Factory | Identified exit to Extension 5118 | -4/Factory | Lost 7 parts (3n1u3w) 5206 | -4/Factory | Discovered exit to Research (range 9) 5269 | -4/Factory | Spotted B-86 Titan 5296 | -4/Factory | Identified Transdimensional Reconstructor 5296 | -4/Factory | Warped through subspace 5327 | -4/Factory | Lost 4 parts (3n1u) 5518 | -4/Factory | Entered Extension 5540 | -4/Extension | Lost 6 parts (1p1n2u2w) 5663 | -4/Extension | Lost 3 parts (1u2w) 5909 | -4/Extension | Rescued A7 5928 | -4/Extension | Rescued a captive Derelict 6139 | -4/Extension | Build established: Scavenger-Tank 6196 | -4/Extension | Rescued a captive Derelict 6197 | -4/Extension | Rescued a captive Derelict 6339 | -4/Extension | Rescued a captive Derelict 6349 | -4/Extension | Rescued a captive Derelict 6367 | -4/Extension | Rescued a captive Derelict 6368 | -4/Extension | Rescued a captive Derelict 6535 | -4/Extension | Rescued a captive Derelict 6535 | -4/Extension | Rescued a captive Derelict 6547 | -4/Extension | Rescued a captive Derelict 6558 | -4/Extension | Rescued a captive Derelict 6558 | -4/Extension | Rescued a captive Derelict 6573 | -4/Extension | Rescued a captive Derelict 6574 | -4/Extension | Rescued a captive Derelict 6598 | -4/Extension | Discovered exit to Research (range 10) 6599 | -4/Extension | Discovered new exit (range 6) 6650 | -4/Extension | Entered Cetus 6650 | -4/Cetus | Accompanied by 12 allies (A7) 6655 | -4/Cetus | Acquired a Cetus Manufacturing Module code from A7 6658 | -4/Cetus | Spotted Cetus Guard 6658 | -4/Cetus | Spotted Cetus Guard 6668 | -4/Cetus | Spotted Cetus Guard 6673 | -4/Cetus | Spotted Cetus Guard 6674 | -4/Cetus | Allies destroyed Cetus Guard 6681 | -4/Cetus | Allies destroyed Cetus Guard 6688 | -4/Cetus | Allies destroyed Cetus Guard 6692 | -4/Cetus | Allies destroyed Cetus Guard 6782 | -4/Cetus | Escorted A7 to Cetus Mainframe 6794 | -4/Cetus | Started Cetus Manufacturing Module 6811 | -4/Cetus | Discovered new exit (range 21) 6819 | -4/Cetus | Manufactured an Enhanced Grunt 6843 | -4/Cetus | Spotted Cetus Guard 6844 | -4/Cetus | Manufactured an Enhanced Grunt 6845 | -4/Cetus | Spotted Cetus Guard 6845 | -4/Cetus | Spotted Cetus Guard 6853 | -4/Cetus | Spotted Cetus Guard 6862 | -4/Cetus | Destroyed Cetus Guard 6869 | -4/Cetus | Manufactured an Enhanced Grunt 6871 | -4/Cetus | Allies destroyed Cetus Guard 6873 | -4/Cetus | Destroyed Cetus Guard 6876 | -4/Cetus | Extracted ID and sensor layout for unrecognized location from A7's data core 6876 | -4/Cetus | Discovered exit to Research (range 21) 6878 | -4/Cetus | Destroyed Cetus Guard 6894 | -4/Cetus | Manufactured an Enhanced Grunt 6898 | -4/Cetus | Met Revision 17 6919 | -4/Cetus | Manufactured an Enhanced Grunt 6988 | -4/Cetus | Entered Archives 6988 | -4/Archives | Accompanied by 6 allies 7064 | -4/Archives | Discovered new exit (range 22) 7072 | -4/Archives | Unable to access archive contents 7089 | -4/Archives | Discovered new exit (range 22) 7097 | -4/Archives | Unable to access archive contents 7132 | -4/Archives | Discovered exit to Research (range 22) 7165 | -4/Archives | Entered Hub_04(d) 7165 | -4/Hub_04(d) | Accompanied by 5 allies 7487 | -4/Hub_04(d) | Network Hub disabled 7501 | -4/Hub_04(d) | Spotted Lightning 7502 | -4/Hub_04(d) | Spotted Lightning 7503 | -4/Hub_04(d) | Spotted Lightning 7505 | -4/Hub_04(d) | Spotted Lightning 7506 | -4/Hub_04(d) | Spotted Lightning 7508 | -4/Hub_04(d) | Spotted Lightning 7512 | -4/Hub_04(d) | System corruption reached 10% 7532 | -4/Hub_04(d) | Core integrity fell below 50% 7535 | -4/Hub_04(d) | Crushed by falling debris 7535 | -4/Hub_04(d) | System corruption reached 30% 7554 | -4/Hub_04(d) | Core integrity fell below 20% 7565 | -4/Hub_04(d) | Discovered exit to Research (range 16) 7574 | -4/Hub_04(d) | Destroyed by Lightning with EMDS Last Messages --------------- 07556_ Adv. Heat Sink destroyed. 07556_ Great Axe destroyed. 07558_ EMDS Slug penetrates Wall. 07559_ Penetrated by EMDS Slug. 07560_ Dropped Hcp. Storage Unit. 07560_ Penetrated by EMDS Slug. 07561_ System corrupted: Matter fused (-6). 07561_ EMDS Slug penetrates Wall. 07564_ EMDS Slug penetrates Control Node. 07564_ Control Node disabled. 07565_ Lgt. Quantum Reactor destroyed. 07565_ Critical hit (Burn: +50). 07565_ EXIT=FOUND: RESEARCH 07565_ EMDS Slug penetrates Wall. 07566_ K-01 Serf exits level. 07571_ Slug penetrates I-47 Archangel. 07571_ Lightning suffers critical hit (Destroy). 07571_ Lightning destroyed. 07573_ K-01 Serf exits level. 07574_ Penetrated by EMDS Slug. Map ----- +----------------------------------------------------+ | | | | | | | | | | | | | | | | | | | | | | | | | | | | | | | | | | | | | ?????????????????########????????????????????? | | ?????????????????# !!! #???????????????????? | | ?????????????????# !! " #???????????????????? | | ???#####?????????# !! " #???????????????????? | | #??# ?????????? " #???????????????????? | | ## # #########??? ????????????????????? | | # !######+####### #??????????? | | # "" g%/hh @ #?????? | | """"""" " *##h Yk < +?????? | | " !# ! ## ##A####### ### #??????? | | %%" [# !## ## ????????###??????????? | | " " ## ## ]????????????????????? | | %[#""="""#+## !# ???????????????????? | | %[% ![%=[ = " ???????????????????? | | ! [%!%[ *%* " ?????????????????? | | "!=**"""""!!%%!" ?????????????????? | | " ![ #"!=""#""""#"#???????????????? | | " # " ! #???????????????? | | " # " #???????????????? | | " # ! " " "" #???????????????? | | """"""" # !#! """ #???????????????? | | # + """ #???????????????? | | ######### "" !"""" #???????????????? | | #########???????# !% #???????????????? | | ????????????????# """" """" #???????????????? | | ????????????????# """" """" #???????????????? | | ????????????????# """" """" #???????????????? | | ????????????????# """" """" #???????????????? | | ????????????????# [ #???????????????? | | ????????????????###########+###??????????????? | | ????????????????###########!# #??????????????? | | ????????????????# #%# #??????????????? | +----------------------------------------------------+ Best States ------------- Heat Dissipation 108 Energy Generation 35 Energy Capacity 350 Matter Stores 300 Matter Capacity 450 Sight Range 22 Terrain Scan Range 16 Terrain Scan Density 210 Jamming Range 12 Additional Mass Support 9 EM Shielding 3 Armor Coverage 1350 Resistance: KI 30 Utility Shielding 90 Evasion (%) 55 Targeting Accuracy 16 Recoil Reduction 5 Offensive Hacking 20 Defensive Hacking 28 Item Schematics ----------------- Assault Drone Bay | -5/Zhirov | Free Exp. Heat Sink | -5/Zhirov | Free Exp. Optical Array | -5/Zhirov | Free Imp. Arc Thrower | -5/Zhirov | Free Imp. Overload Regulator | -4/Extension | Hacked Robot Schematics ------------------ None Fabricated ------------ Nothing Alien Tech Used ----------------- Integrated Reactor Transdimensional Reconstructor Achievements -------------- None Challenges ------------ None Game ------ Seed PotentialBackupKit Manual? 0 Play Time 02:25:40 Cumulative 511.3 hours Start 2021.12.14 @ 03:35:27 End 2021.12.14 @ 06:09:18 Sessions 1 Manual Loads 0 Difficulty Rogue Special Mode None Game No. 109 Rogue 78 Adventurer 31 Explorer 0 Win Type - Total 27 Types 22/0/2/3/0/0/0/0/0 Lore% 70 Gallery% 81 Achievement% 64 Wizard Run 0 Options --------- ASCII 0 Keyboard 0 Movement Arrows Keybinds 0 Fullscreen 1 Font 20/Terminus Map View 66x50 Tactical HUD 1 Map Filters NONE Filters NONE Steam 1 RUN: 98209117-5543-4a05-a2bf-97000f743a65